fUSD/lending_fUSD_20240217
["ID","MTS","AMOUNT","RATE_DAILY","PERIOD"]
[314329761,1708187441067,-891.62690609,0.00037883,4]
[314329762,1708187441076,-15918.0999516,0.000379,2]
[314329763,1708187441087,-21996.88432263,0.000379,2]
[314329764,1708187441096,-1343.14024455,0.00037948,8]
[314329765,1708187441105,-1000.0,0.00037999,2]
[314329766,1708187441114,-1000.0,0.00038037,2]
[314329767,1708187441122,-166.09,0.00038233,2]
[314329768,1708187441131,-179.2,0.00038346,2]
[314329769,1708187441140,-1760.16,0.00038352,2]
[314329770,1708187441149,-196.06,0.00038356,15]
[314329771,1708187441158,-155.84,0.00038356,2]
[314329772,1708187441167,-9858.52557029,0.0003839,10]
[314329773,1708187441176,-12839.0,0.000384,3]
[314329774,1708187441185,-2280.0,0.000384,3]
[314329775,1708187441194,-151.0,0.00038558,4]
[314329776,1708187441204,-1333.79535729,0.00038631,2]
[314329777,1708187441213,-3986.66,0.00038668,2]
[314329778,1708187441222,-155.0,0.00038769,2]
[314329779,1708187441231,-9858.52557029,0.00038841,10]
[314329780,1708187441241,-990.38,0.00038851,2]
[314329781,1708187441251,-155.51,0.00038856,2]
[314329782,1708187441261,-354.68,0.0003888,2]
[314329783,1708187441270,-39434.1022812,0.0003897,10]
[314329784,1708187441280,-9858.52557029,0.0003898,10]
[314329785,1708187441289,-19717.0511406,0.0003899,10]
[314329786,1708187441298,-900.0,0.00039,3]
[314329787,1708187441307,-42000.0,0.00039,3]
[314329788,1708187441316,-211.67,0.0003926,2]
[314329789,1708187441325,-151.0,0.00039344,2]
[314329790,1708187441560,-3000.0,0.0003948,2]
[314329791,1708187441569,-150.0,0.00039497,2]
[314329792,1708187441579,-1343.14024455,0.00039606,9]
[314329793,1708187441590,-1760.16,0.0003963,2]
[314329794,1708187441600,-153.14974221,0.00039669,5]
[314329795,1708187441610,-1123.64680788,0.0003972,2]
[314329796,1708187441620,-85988.129558,0.00039749,5]
[314329797,1708187441629,-69009.678992,0.00039759,10]
[314329798,1708187441639,-9858.52557029,0.00039759,10]
[314329799,1708187441648,-49292.6278515,0.00039769,10]
[314329800,1708187441658,-85988.129558,0.00039769,5]
[314329801,1708187441667,-1409.30262551,0.00039769,13]
[314329802,1708187441677,-500.0,0.00039779,2]
[314329803,1708187441687,-15877.6719,0.00039779,2]
[314329804,1708187441697,-100000.0,0.00039779,2]
[314329805,1708187441707,-158.71175441,0.0003978,2]
[314329806,1708187441716,-49292.6278515,0.00039831,10]
[314329807,1708187441725,-9858.52557029,0.0003984,10]
[314329808,1708187441735,-25102.27154742,0.00039866,2]
[314329809,1708187441744,-325.84,0.00039867,3]
[314329810,1708187441754,-85988.129558,0.00039867,6]
[314329811,1708187441763,-171976.259116,0.00039869,6]
[314329812,1708187441772,-1000.0,0.00039869,2]
[314329813,1708187441782,-171976.259116,0.0003987,6]
[314329814,1708187441794,-150.0,0.00039877,2]
[314329815,1708187441803,-300.0,0.00039877,7]
[314329816,1708187441813,-450.0,0.00039877,12]
[314329817,1708187441824,-466.64550976,0.00039877,17]
[314329818,1708187441835,-200818.17237936,0.00039877,2]
[314329820,1708187441845,-214.06588635,0.00039878,4]
[314329822,1708187441854,-15872.75458595,0.00039878,7]
[314329824,1708187441864,-198383.51643142,0.00039879,2]
[314329826,1708187441873,-345.73203912,0.00039879,30]
[314329828,1708187441882,-1000.0,0.00039879,2]
[314329830,1708187441891,-308.68878561,0.00039879,31]
[314329832,1708187441901,-500.0,0.00039879,31]
[314329834,1708187441910,-151.87339131,0.00039879,31]
[314329836,1708187441920,-238.50154243,0.00039879,31]
[314329838,1708187441929,-500.0,0.00039879,31]
[314329840,1708187441938,-2000.0,0.0003988,2]
[314329842,1708187441948,-200.0,0.0003988,2]
[314329844,1708187441957,-677.58166962,0.0003988,2]
[314329846,1708187441966,-232.42988705,0.0003988,2]
[314329848,1708187441975,-200.0,0.0003988,2]
[314329850,1708187441984,-158.87602699,0.0003988,2]
[314329851,1708187441994,-2738469.78015894,0.0003988,2]
[314329852,1708187442008,-1294260.6170399,0.0003988,2]
[314329853,1708187442020,-260462.69840913,0.0003988,2]
[314329854,1708187442031,-393.27598353,0.0003988,2]
[314329855,1708187442043,-1980.82651935,0.0003988,2]
[314329856,1708187442058,-176462.72977342,0.0003988,2]
[314329857,1708187442250,-327.586,0.0003988,2]
[314329884,1708187443466,-210.0,0.00039669,2]
[314329885,1708187443476,-135.81999985,0.0003988,2]
[314329886,1708187443501,-8550.71345641,0.0003988,2]
[314329887,1708187443525,-1256.0300005,0.0003988,2]
[314329888,1708187443536,-480.95,0.0003988,2]
[314329889,1708187443557,-1617.59214658,0.0003988,2]
[314329890,1708187443568,-733.72564252,0.0003988,2]
[314329895,1708187446180,-8314.8369213,0.000228,2]
[314329896,1708187446301,-635.86810175,0.000228,2]
[314329897,1708187446383,-877.80167697,0.000228,2]
[314329898,1708187446411,-649.19326457,0.000228,2]
[314329899,1708187446473,-62847.51988037,0.000228,2]
[314329900,1708187446486,-265.0065028,0.000228,2]
[314329901,1708187447228,-20096.19461071,0.000228,2]
[314329902,1708187447240,-613.301,0.000228,2]
[314329917,1708188481028,550.0,0.00025,3]
[314329923,1708188557258,-655.49795188,0.00022798,2]
[314329924,1708188557278,-319.5262551,0.00022798,2]
[314329933,1708188631434,-307.4216388,0.00022798,2]
[314329934,1708188631444,-766.24219134,0.00022798,2]
[314329935,1708188631452,-655.49795188,0.00022798,2]
[314329936,1708188631461,-150.0,0.00022799,2]
[314329937,1708188631470,-5700.27804153,0.000228,2]
[314329938,1708188631480,-25284.29169445,0.000228,2]
[314329939,1708188631497,-1971.44374651,0.000228,2]
[314329940,1708188631599,-16918.92329582,0.000228,2]
[314329941,1708188631709,-7440.88516322,0.000228,2]
[314329942,1708188631719,-500.0,0.000228,2]
[314329943,1708188631728,-600.0,0.00027,3]
[314329944,1708188631737,-200.28543471,0.00028,2]
[314329946,1708188631746,-650.0,0.00029,3]
[314329948,1708188631760,-155.0,0.00031,4]
[314329950,1708188631769,-700.0,0.00031,3]
[314329952,1708188631777,-750.0,0.00033,3]
[314329954,1708188631787,-3000.0,0.00035,5]
[314329955,1708188631795,-900.0,0.00035,36]
[314329957,1708188631804,-800.0,0.00035,3]
[314329959,1708188631813,-2000.0,0.000356,2]
[314329961,1708188631821,-871.59,0.00035963,2]
[314329963,1708188631832,-850.0,0.00037,3]
[314329965,1708188631842,-197.77,0.00037468,2]
[314329966,1708188631851,-5000.0,0.000375,28]
[314329969,1708188631859,-400.0,0.00037522,2]
[314329971,1708188631868,-208.4,0.00037572,2]
[314329972,1708188631879,-250.0,0.00037574,2]
[314329973,1708188631890,-385.94340466,0.00037821,2]
[314329977,1708188637425,-1614.05659534,0.00037821,2]
[314329978,1708188637434,-165.08,0.00037885,2]
[314329979,1708188637443,-658.95,0.00037918,2]
[314329980,1708188637452,-499.99,0.00037918,2]
[314329981,1708188637462,-600.0,0.00037919,2]
[314329982,1708188637471,-1562.50068327,0.00037933,2]
[314329983,1708188637483,-2490.97927769,0.00037933,2]
[314329984,1708188637494,-301.7977723,0.00037933,2]
[314329985,1708188637506,-1022.04,0.00037933,2]
[314329986,1708188637517,-311.72166704,0.00037933,2]
[314329987,1708188637529,-18210.9605997,0.00037933,2]
[314329988,1708188637538,-500.0,0.00037951,2]
[314329989,1708188637547,-157.66,0.00037953,10]
[314329990,1708188637556,-250.0,0.00037977,2]
[314329991,1708188637565,-150.0,0.00038056,2]
[314329992,1708188637583,-871.59,0.00038227,2]
[314329993,1708188637596,-206.0,0.00038262,2]
[314329994,1708188637605,-11555.0,0.000383,3]
[314329995,1708188637615,-179.72,0.00038356,15]
[314329996,1708188637624,-155.84,0.00038356,2]
[314329997,1708188637635,-2000.0,0.000384,2]
[314329998,1708188637645,-2301.9762,0.000384,2]
[314329999,1708188637654,-10000.0,0.000385,31]
[314330000,1708188637663,-166.09,0.00038501,2]
[314330001,1708188637674,-155.0,0.0003888,2]
[314330002,1708188637683,-900.0,0.00039,3]
[314330003,1708188637692,-2884.0,0.00039077,2]
[314330004,1708188637702,-248.53891242,0.00039135,2]
[314330005,1708188637720,-531.00469578,0.00039135,2]
[314330006,1708188637733,-2587.5463918,0.00039135,2]
[314330007,1708188637742,-169.33,0.0003926,2]
[314330008,1708188637752,-150.0,0.00039347,2]
[314330009,1708188637766,-200.0,0.00039561,20]
[314330010,1708188637776,-6367.23998064,0.0003968,2]
[314330011,1708188637786,-1010.71077625,0.00039767,9]
[314330012,1708188637795,-1200.41582158,0.00039779,2]
[314330013,1708188637806,-7186.8164,0.0003978,2]
[314330014,1708188637815,-2287.28387213,0.0003978,13]
[314330016,1708188637824,-153.67516024,0.0003978,2]
[314330017,1708188637834,-153.14974215,0.0003978,5]
[314330018,1708188637844,-150.73300819,0.0003984,2]
[314330019,1708188637853,-2418.06336892,0.0003985,10]
[314330020,1708188637862,-153.0,0.0003986,2]
[314330021,1708188637871,-25389.6653737,0.0003986,10]
[314330023,1708188637881,-282467.47762,0.0003986,5]
[314330025,1708188637890,-200.0,0.0003987,7]
[314330027,1708188637900,-200.0,0.0003987,7]
[314330029,1708188637909,-200.0,0.0003987,7]
[314330031,1708188637918,-353084.347025,0.0003987,5]
[314330033,1708188637927,-316.72234232,0.00039877,2]
[314330035,1708188637936,-326.23665962,0.00039879,4]
[314330037,1708188637945,-607888.20349736,0.0003988,2]
[314330039,1708188637957,-260462.69840913,0.0003988,2]
[314330041,1708188637969,-4973.8725021,0.0003988,2]
[314330045,1708188637988,-7439.49937052,0.0003988,2]
[314330351,1708188640985,-279.90084777,0.0003988,2]
[314330360,1708188641058,-1700.65533618,0.0003988,2]
[314330362,1708188641070,-1784.401748,0.0003988,2]
[314330364,1708188641082,-260.5005,0.0003988,2]
[314330471,1708188642491,-170902.57493421,0.0003988,2]
[314330472,1708188642521,-34761.63129147,0.0003988,2]
[314330473,1708188642532,-14477.07833364,0.0003988,2]
[314330486,1708188645426,-452.29167593,0.0003988,2]
[314330489,1708188835774,345.73203912,0.00022999,10]
[314330490,1708188850771,980.24095502,0.0002,2]
[314330492,1708188865929,303.41266578,0.000137,2]
[314330493,1708188883538,227.0,0.00025,10]
[314330494,1708188904180,1397.31759274,0.00022309,2]
[314330498,1708188964672,776.28755152,0.0002164,2]
[314330499,1708188980685,776.28755152,0.0002164,2]
[314330502,1708189004673,404.44581434,0.0002164,2]
[314330503,1708189022689,404.44581434,0.00020991,2]
[314330505,1708189048683,404.44581434,0.00020991,2]
[314330506,1708189068379,-425.6901063,0.00022685,2]
[314330507,1708189068399,-511.3098937,0.00022686,2]
[314330508,1708189072690,404.44581434,0.00020991,2]
[314330509,1708189090684,404.44581434,0.00020361,2]
[314330510,1708189112699,404.44581434,0.00020361,2]
[314330511,1708189130696,404.44581434,0.00020361,2]
[314330512,1708189150691,404.44581434,0.0001975,2]
[314330513,1708189168695,404.44581434,0.0001975,2]
[314330514,1708189184107,-15814.35571348,0.00041108,120]
[314330515,1708189184130,-23017.94119475,0.00041108,32]
[314330516,1708189184152,-275.15622716,0.00041108,30]
[314330517,1708189184176,-216.5760994,0.00041108,30]
[314330518,1708189184199,-155.56468996,0.00041108,120]
[314330519,1708189184221,-159.35404023,0.00041108,30]
[314330520,1708189184243,-32666.56886121,0.00041108,120]
[314330521,1708189184264,-201.59239623,0.00041108,120]
[314330522,1708189184287,-3983.18835857,0.00041108,120]
[314330523,1708189184310,-169.71709592,0.00041108,120]
[314330524,1708189184332,-306.59704943,0.00041108,120]
[314330525,1708189184355,-701.82634713,0.00041108,30]
[314330526,1708189184381,-151.34673705,0.00041108,30]
[314330527,1708189184402,-158.00946671,0.00041108,60]
[314330528,1708189184425,-5873.72402886,0.00041108,120]
[314330529,1708189184447,-199.26055783,0.00041108,30]
[314330530,1708189184469,-2702.2494658,0.00041108,120]
[314330531,1708189184491,-151.5694382,0.00041108,60]
[314330532,1708189184512,-463.0,0.00041108,120]
[314330533,1708189184535,-427.33535457,0.00041108,120]
[314330534,1708189185891,-425.6901063,0.00022683,2]
[314330535,1708189185912,-655.49795188,0.00022684,2]
[314330536,1708189185936,-626.9478939,0.00022695,2]
[314330537,1708189185956,-3719.16143134,0.00022789,2]
[314330538,1708189185977,-482.7783,0.000229,2]
[314330539,1708189185999,-500.0,0.000229,2]
[314330540,1708189186020,-23064.4883,0.000229,2]
[314330541,1708189186042,-217.52444167,0.0002293,2]
[314330542,1708189186063,-568.84090142,0.0002293,2]
[314330543,1708189186084,-1159701.8278401,0.0002299,2]
[314330544,1708189186106,-326.23665962,0.00022999,2]
[314330545,1708189186128,-392672.46178669,0.00023,2]
[314330546,1708189186148,-217038.54438708,0.00023,2]
[314330547,1708189188712,404.44581434,0.00019158,2]
[314330548,1708189195882,-3044.61894984,0.00035,30]
[314330549,1708189195907,-500.0,0.00035148,30]
[314330550,1708189195933,-500.0,0.00035148,30]
[314330551,1708189195957,-500.0,0.00035148,30]
[314330552,1708189195979,-500.0,0.00035148,30]
[314330553,1708189196004,-500.0,0.00035148,30]
[314330554,1708189196027,-500.0,0.00035148,30]
[314330555,1708189196049,-477.79598774,0.00035148,30]
[314330556,1708189196072,-332.70764338,0.000355,30]
[314330557,1708189196094,-3064.21141219,0.00035888,30]
[314330558,1708189196116,-524.20401235,0.0003668,30]
[314330559,1708189196143,-500.0,0.00039999,31]
[314330560,1708189196165,-308.68878561,0.00039999,31]
[314330561,1708189196187,-238.50154243,0.00039999,31]
[314330562,1708189196209,-500.0,0.00039999,31]
[314330563,1708189196232,-151.87339131,0.00039999,31]
[314330564,1708189196254,-119458.14296236,0.0004,30]
[314330565,1708189196277,-200.0,0.0004,30]
[314330566,1708189196298,-5050.63,0.0004,30]
[314330567,1708189196320,-159.61444784,0.0004,30]
[314330568,1708189196343,-200.0,0.000402,30]
[314330569,1708189196366,-287.63546888,0.000404,30]
[314330570,1708189196389,-238.19867172,0.00041,30]
[314330571,1708189196412,-3067.76,0.00041,30]
[314330572,1708189196433,-3067.74,0.00041,30]
[314330573,1708189196458,-150.0,0.00041182,30]
[314330574,1708189196480,-238.99199432,0.00041245,30]
[314330575,1708189196503,-151.26521727,0.00041677,30]
[314330576,1708189196529,-156.66,0.00041941,120]
[314330577,1708189196551,-1231.24686331,0.00042,120]
[314330578,1708189196575,-151.26521727,0.00042842,30]
[314330579,1708189196596,-151.26521727,0.00042882,30]
[314330580,1708189196617,-3444.48866904,0.00042888,32]
[314330581,1708189196639,-151.26521727,0.00043047,30]
[314330582,1708189196661,-151.26521727,0.00043098,30]
[314330583,1708189196683,-151.26521727,0.00043106,30]
[314330584,1708189196705,-160.0,0.00043151,90]
[314330585,1708189196728,-151.26521727,0.00043228,30]
[314330586,1708189196749,-151.26521727,0.00043551,30]
[314330587,1708189196771,-151.26521727,0.0004367,30]
[314330588,1708189196793,-151.26521727,0.00043819,30]
[314330589,1708189196815,-151.26521727,0.00043834,30]
[314330590,1708189196837,-151.26521727,0.00043875,30]
[314330591,1708189196863,-100000.0,0.00045,35]
[314330592,1708189196885,-162.0,0.00045308,90]
[314330593,1708189196911,-100000.0,0.00046,36]
[314330594,1708189196938,-153.14974215,0.00046293,30]
[314330595,1708189196962,-151.26521727,0.00046561,30]
[314330596,1708189198599,4036.50379123,0.00046575,120]
[314330597,1708189202702,402.81397383,0.00019158,2]
[314330598,1708189303169,889.354822,0.00019158,2]
[314330599,1708189314262,-425.6901063,0.00022688,2]
[314330600,1708189314286,-2084.9115,0.00022689,2]
[314330601,1708189314307,-500.0,0.000229,2]
[314330602,1708189314332,-1000.0,0.000229,2]
[314330603,1708189314355,-245000.0,0.000229,2]
[314330604,1708189314377,-158.85893027,0.0002293,2]
[314330605,1708189314399,-568.84090142,0.0002293,2]
[314330606,1708189314421,-721.50034603,0.00022998,2]
[314330607,1708189314444,-326.23665962,0.00022998,2]
[314330608,1708189314467,-293.6561996,0.00022998,2]
[314330609,1708189314489,-150.0,0.00022999,2]
[314330610,1708189314511,-828770.30535676,0.00023,2]
[314330611,1708189342214,200.0,0.00025078,120]
[314330612,1708189342439,200.0,0.00028213,120]
[314330613,1708189342660,200.0,0.00031347,120]
[314330614,1708189352524,1345.67,0.0002,2]
[314330617,1708189383791,150.06,0.00024992,10]
[314330618,1708189385105,-150.0,0.00022899,2]
[314330619,1708189385130,-150.0,0.00022899,2]
[314330620,1708189385161,-23064.4883,0.000229,2]
[314330621,1708189385186,-9005.2889,0.000229,2]
[314330622,1708189385210,-7206.3845,0.000229,2]
[314330623,1708189385235,-21159.0418,0.000229,2]
[314330624,1708189385258,-1000.0,0.000229,2]
[314330625,1708189385281,-508.39295138,0.00022998,2]
[314330626,1708189385303,-221.78454538,0.00022999,2]
[314330627,1708189385325,-945.0534,0.00022999,2]
[314330628,1708189385348,-936589.56560324,0.00023,2]
[314330629,1708189448400,177.14,0.00016712,2]
[314330635,1708189752110,-155.0,0.00022791,2]
[314330636,1708189752129,-221.78454538,0.00022791,2]
[314330637,1708189752149,-338.92863425,0.00022792,2]
[314330638,1708189752172,-150.0,0.00022799,2]
[314330639,1708189752192,-300.0,0.000228,2]
[314330640,1708189752213,-310.6357,0.000228,2]
[314330641,1708189752235,-505.93222037,0.000228,2]
[314330642,1708189807037,325.84,0.0002289,3]
[314330651,1708189831784,-221.78454538,0.00022799,2]
[314330652,1708189831793,-1377.44577963,0.000228,2]
[314330653,1708189831803,-2726.73009183,0.000228,2]
[314330790,1708189837632,-155.0,0.00022798,2]
[314330791,1708189837643,-259.46760817,0.000228,2]
[314330792,1708189837652,-739.0699,0.000228,2]
[314330793,1708189837662,-889.354822,0.000228,2]
[314330794,1708189837674,-4640.25829047,0.0002289,2]
[314330795,1708189837684,-500.0,0.000229,2]
[314330796,1708189837693,-245000.0,0.000229,2]
[314330797,1708189837702,-74751.63831358,0.00023,2]
[314330798,1708189837711,-1526.68,0.00023021,2]
[314330799,1708189837720,-4665.69764438,0.0002313,2]
[314330800,1708189837729,-158.85893019,0.00023159,2]
[314330801,1708189837738,-6577.38,0.00023159,2]
[314330802,1708189837748,-499.99,0.00023159,2]
[314330803,1708189837757,-26919.70012938,0.000232,2]
[314330804,1708189837771,-500.0,0.00023309,2]
[314330805,1708189837780,-409.8,0.0002336,2]
[314330806,1708189837789,-150.99,0.0002336,2]
[314330807,1708189837798,-158.85893019,0.00023388,2]
[314330808,1708189837808,-1000.0,0.00023407,2]
[314330809,1708189837818,-402.48,0.00023512,2]
[314330810,1708189837827,-158.85893019,0.00023617,2]
[314330811,1708189837836,-551.68,0.00023617,2]
[314330812,1708189837846,-2120.94,0.00023623,2]
[314330813,1708189837855,-164.62,0.00023689,2]
[314330814,1708189837864,-2120.94,0.00023747,2]
[314330815,1708189837873,-164.62,0.00023754,2]
[314330816,1708189837882,-164.62,0.00023819,2]
[314330817,1708189837893,-158.85893019,0.00023846,2]
[314330818,1708189837902,-200.0,0.00023856,2]
[314330819,1708189837911,-2120.94,0.00023871,2]
[314330820,1708189837922,-750.0,0.00023883,2]
[314330821,1708189837931,-164.62,0.00023884,2]
[314330822,1708189837940,-23900.0,0.00023936,2]
[314330823,1708189837949,-164.62,0.00023949,2]
[314330824,1708189837959,-200.0,0.00023963,2]
[314330825,1708189837968,-2705.0,0.00023991,2]
[314330827,1708189837977,-800.0,0.00023991,2]
[314330829,1708189837987,-2120.94,0.00023996,2]
[314330831,1708189837996,-164.62,0.00024014,2]
[314330833,1708189838006,-2535.92,0.00024019,2]
[314330835,1708189838015,-158.85893019,0.00024074,2]
[314330837,1708189838024,-164.62,0.00024079,2]
[314330839,1708189838033,-2120.94,0.0002412,2]
[314330841,1708189838043,-164.62,0.00024144,2]
[314330843,1708189838052,-164.62,0.00024209,2]
[314330845,1708189838061,-2120.94,0.00024244,2]
[314330847,1708189838070,-164.62,0.00024273,2]
[314330849,1708189838080,-158.85893019,0.00024303,2]
[314330851,1708189838090,-164.62,0.00024338,2]
[314330854,1708189838100,-150.0,0.00024359,2]
[314330856,1708189838110,-2120.94,0.00024369,2]
[314330857,1708189838122,-6502.51,0.00024384,2]
[314330860,1708189838131,-164.62,0.00024403,2]
[314330861,1708189838140,-164.62,0.00024468,2]
[314330864,1708189838151,-2120.94,0.00024493,2]
[314330866,1708189838160,-158.85893019,0.00024532,2]
[314330868,1708189838170,-164.62,0.00024533,2]
[314330870,1708189838180,-164.62,0.00024598,2]
[314330872,1708189838190,-2120.94,0.00024617,2]
[314330874,1708189838200,-164.62,0.00024663,2]
[314330876,1708189838209,-164.62,0.00024728,2]
[314330878,1708189838221,-2120.94,0.00024742,2]
[314330880,1708189838230,-158.85893019,0.00024761,2]
[314330882,1708189838240,-164.62,0.00024793,2]
[314330884,1708189838249,-164.62,0.00024858,2]
[314330886,1708189838258,-2120.94,0.00024866,2]
[314330888,1708189838268,-200.0,0.00024892,2]
[314330890,1708189838277,-7387.45,0.00024892,2]
[314330892,1708189838286,-500.0,0.00024901,2]
[314330894,1708189838296,-250.0,0.00024901,2]
[314330896,1708189838305,-164.62,0.00024923,2]
[314330898,1708189838315,-2000.0,0.00024923,2]
[314330900,1708189838324,-250.0,0.00024923,2]
[314330902,1708189838334,-158.85893019,0.0002499,2]
[314330904,1708189838343,-10842.9342,0.0002499,2]
[314330906,1708189838352,-4562.795,0.0002499,2]
[314330908,1708189838361,-4404.438,0.0002499,2]
[314330910,1708189838371,-2120.94,0.0002499,2]
[314330912,1708189838380,-634.89996926,0.00025,2]
[314330914,1708189838389,-1593.45591278,0.00025,2]
[314330916,1708189838398,-250.0,0.00025015,2]
[314330918,1708189838407,-275.97,0.00025015,2]
[314330920,1708189838418,-180.44,0.00025058,2]
[314330922,1708189838427,-200.0,0.00025058,2]
[314330924,1708189838437,-210.0,0.00025079,2]
[314330926,1708189838446,-42471.41888216,0.0002509,2]
[314330928,1708189838455,-28452.30073471,0.0002509,2]
[314330930,1708189838465,-154.95087158,0.0002509,2]
[314330932,1708189838474,-3139.6141823,0.000251,2]
[314330934,1708189838483,-315.44,0.00025109,2]
[314330937,1708189838496,-2120.94,0.00025115,2]
[314330939,1708189838505,-1328.16,0.00025159,2]
[314330941,1708189838514,-2120.94,0.00025239,2]
[314330943,1708189838523,-1526.68,0.00025285,2]
[314330945,1708189838532,-2120.94,0.00025363,2]
[314330947,1708189838542,-224.34,0.00025477,2]
[314330949,1708189838551,-2120.94,0.00025488,2]
[314330951,1708189838562,-275.70955128,0.0002549,2]
[314330953,1708189838571,-2120.94,0.00025612,2]
[314330955,1708189838581,-980.39,0.00025673,2]
[314330957,1708189838590,-2120.94,0.00025736,2]
[314330959,1708189838599,-701.3611,0.00025801,2]
[314330961,1708189838608,-2500.0,0.00025801,2]
[314330963,1708189838618,-2120.94,0.00025861,2]
[314330965,1708189838627,-2120.94,0.00025985,2]
[314330967,1708189838637,-4198.72592565,0.00026,2]
[314330969,1708189838646,-202.31004452,0.00026,2]
[314330971,1708189838655,-150.0,0.00026079,2]
[314330973,1708189838664,-300.0,0.00026114,2]
[314330975,1708189838675,-26968.90269269,0.000263,2]
[314330977,1708189838684,-1000.0,0.00026333,2]
[314330979,1708189838693,-800.0,0.00026384,2]
[314330981,1708189838702,-275.97,0.00026405,2]
[314330983,1708189838711,-1328.16,0.00026417,2]
[314330985,1708189838720,-7387.45,0.00026536,2]
[314330987,1708189838730,-409.54,0.00026822,2]
[314330989,1708189838739,-3398.68,0.00027123,2]
[314330991,1708189838749,-8043.67359045,0.000272,2]
[314330993,1708189838758,-1315.66,0.00027316,2]
[314330996,1708189838769,-155.0,0.00027397,2]
[314330998,1708189838780,-1109.59,0.00027397,2]
[314331000,1708189838789,-33030.75,0.00027397,2]
[314331002,1708189838799,-300.0,0.00027484,2]
[314331004,1708189838809,-186.84983115,0.000275,2]
[314331006,1708189838819,-1526.68,0.00027549,2]
[314331008,1708189838829,-1109.59,0.00027556,2]
[314331010,1708189838839,-244.0,0.00027587,2]
[314331012,1708189838850,-1328.16,0.00027675,2]
[314331014,1708189838859,-1109.59,0.00027714,2]
[314331016,1708189838869,-275.97,0.00027794,2]
[314331018,1708189838879,-180.44,0.00027798,2]
[314331020,1708189838889,-1109.59,0.00027872,2]
[314331023,1708189838899,-205.0,0.00027924,2]
[314331025,1708189838908,-43494.79971123,0.00028,2]
[314331027,1708189838919,-3588.10246471,0.00028,2]
[314331029,1708189838929,-224.34,0.00028024,2]
[314331031,1708189838938,-1109.59,0.0002803,2]
[314331033,1708189838948,-7387.45,0.0002818,2]
[314331035,1708189838958,-1109.59,0.00028189,2]
[314331037,1708189838968,-1315.66,0.00028282,2]
[314331039,1708189838977,-1000.0,0.00028299,2]
[314331041,1708189838986,-1109.59,0.00028347,2]
[314331043,1708189838996,-1109.59,0.00028505,2]
[314331045,1708189839006,-800.0,0.00028548,2]
[314331048,1708189839016,-1109.59,0.00028664,2]
[314331050,1708189839025,-155.0,0.00028767,2]
[314331052,1708189839034,-1109.59,0.00028822,2]
[314331054,1708189839044,-1328.16,0.00028933,2]
[314331056,1708189839053,-275.97,0.00029184,2]
[314331058,1708189839062,-1315.66,0.00029248,2]
[314331060,1708189839071,-1000.0,0.00029259,2]
[314331062,1708189839081,-1526.68,0.00029813,2]
[314331064,1708189839090,-7387.45,0.00029824,2]
[314331066,1708189839100,-198383.51643142,0.0003,2]
[314331068,1708189839110,-1817.93660883,0.0003,4]
[314331070,1708189839124,-1177.58646698,0.0003,4]
[314331072,1708189839133,-205.0,0.0003,2]
[314331074,1708189839143,-298.58449128,0.000301,2]
[314331076,1708189839154,-155.6,0.00030137,2]
[314331078,1708189839163,-155.0,0.00030137,2]
[314331080,1708189839175,-1328.16,0.00030191,2]
[314331082,1708189839185,-1315.66,0.00030214,2]
[314331084,1708189839194,-275.97,0.00030574,2]
[314331087,1708189839205,-155.6,0.00030746,2]
[314331089,1708189839215,-256.70459311,0.000308,20]
[314331091,1708189839224,-1315.66,0.0003118,2]
[314331093,1708189839234,-155.6,0.00031355,2]